fUST/lending_fUST_20240613
["ID","MTS","AMOUNT","RATE_DAILY","PERIOD"]
[329348367,1718266251441,-500.0,0.00016986,2]
[329348368,1718266251452,-508.07087699,0.00016986,2]
[329348369,1718266251463,-500.0,0.00016986,2]
[329348370,1718266251487,-507.70759402,0.00016986,2]
[329348371,1718266251501,-1652.68,0.00016986,2]
[329348372,1718266251513,-500.0,0.00016986,2]
[329348373,1718266251532,-500.0,0.00016986,2]
[329348374,1718266251543,-500.0,0.00016986,2]
[329348375,1718266251561,-742.37,0.00016986,2]
[329348376,1718266251572,-500.0,0.00016986,2]
[329348377,1718266251588,-617.72,0.00016986,2]
[329348378,1718266251600,-500.0,0.00016986,2]
[329348379,1718266251610,-2619.21,0.00016986,2]
[329348380,1718266251621,-500.0,0.00016986,2]
[329348381,1718266251640,-500.0,0.00016986,2]
[329348382,1718266251660,-500.0,0.00016986,2]
[329348383,1718266251670,-500.0,0.00016986,2]
[329348384,1718266251681,-500.0,0.00016986,2]
[329348385,1718266251710,-500.0,0.00016986,2]
[329348386,1718266251722,-1855.6417537,0.00017219,2]
[329348387,1718266251735,-500.0,0.00017259,2]
[329348388,1718266251750,-533.9,0.00017259,2]
[329348389,1718266251765,-500.0,0.00017259,2]
[329348390,1718266251783,-500.0,0.00017259,2]
[329348391,1718266251806,-500.0,0.00017259,2]
[329348392,1718266251817,-500.0,0.0001726,2]
[329348393,1718266251835,-500.0,0.0001726,2]
[329348394,1718266251864,-500.0,0.0001726,2]
[329348395,1718266251877,-500.0,0.0001726,2]
[329348396,1718266251890,-615.15,0.0001726,2]
[329348397,1718266251905,-500.0,0.0001726,2]
[329348398,1718266251915,-161.46,0.0001726,2]
[329348399,1718266251927,-953.27,0.0001726,2]
[329348400,1718266251986,-500.0,0.0001726,2]
[329348401,1718266252013,-500.0,0.0001726,2]
[329348402,1718266252024,-500.0,0.0001726,2]
[329348403,1718266252037,-2157.95,0.0001726,2]
[329348404,1718266252061,-500.0,0.0001726,2]
[329348405,1718266252080,-973.35,0.0001726,2]
[329348406,1718266252118,-500.0,0.0001726,2]
[329348407,1718266252150,-1295.43,0.0001726,2]
[329348408,1718266252160,-500.0,0.0001726,2]
[329348409,1718266252173,-500.0,0.0001726,2]
[329348410,1718266252185,-500.0,0.0001726,2]
[329348411,1718266252196,-3663.23,0.0001726,2]
[329348412,1718266252207,-500.0,0.0001726,2]
[329348413,1718266252221,-500.0,0.0001726,2]
[329348414,1718266252239,-500.0,0.0001726,2]
[329348415,1718266252250,-500.0,0.0001726,2]
[329348416,1718266252265,-500.0,0.0001726,2]
[329348417,1718266252278,-1073.74,0.0001726,2]
[329348418,1718266252288,-751.61,0.0001726,2]
[329348419,1718266252324,-834.37,0.0001726,2]
[329348420,1718266252388,-500.0,0.0001726,2]
[329348421,1718266252407,-1652.68,0.0001726,2]
[329348422,1718266252421,-500.0,0.0001726,2]
[329348423,1718266252432,-500.0,0.0001726,2]
[329348424,1718266252443,-500.0,0.0001726,2]
[329348425,1718266252454,-742.37,0.0001726,2]
[329348426,1718266252465,-500.0,0.0001726,2]
[329348427,1718266252477,-2619.21,0.0001726,2]
[329348428,1718266252490,-500.0,0.0001726,2]
[329348429,1718266252501,-500.0,0.0001726,2]
[329348430,1718266252515,-500.0,0.0001726,2]
[329348431,1718266252544,-500.0,0.0001726,2]
[329348432,1718266252559,-500.0,0.00017534,2]
[329348433,1718266252571,-500.0,0.00017534,2]
[329348434,1718266252605,-348.78,0.00017534,2]
[329348435,1718266252621,-500.0,0.00017534,2]
[329348436,1718266252634,-953.27,0.00017534,2]
[329348437,1718266252660,-500.0,0.00017534,2]
[329348438,1718266252672,-500.0,0.00017534,2]
[329348439,1718266252684,-500.0,0.00017534,2]
[329348440,1718266252705,-2157.95,0.00017534,2]
[329348441,1718266252718,-500.0,0.00017534,2]
[329348442,1718266252733,-973.35,0.00017534,2]
[329348443,1718266252745,-500.0,0.00017534,2]
[329348444,1718266252756,-1295.43,0.00017534,2]
[329348445,1718266252767,-500.0,0.00017534,2]
[329348446,1718266252778,-397.89539599,0.00017534,2]
[329348447,1718266252789,-500.0,0.00017534,2]
[329348448,1718266252800,-3663.23,0.00017534,2]
[329348449,1718266252810,-500.0,0.00017534,2]
[329348450,1718266252823,-500.0,0.00017534,2]
[329348451,1718266252835,-500.0,0.00017534,2]
[329348452,1718266252846,-500.0,0.00017534,2]
[329348453,1718266252859,-1073.74,0.00017534,2]
[329348454,1718266252872,-751.61,0.00017534,2]
[329348455,1718266252883,-834.37,0.00017534,2]
[329348456,1718266252895,-500.0,0.00017534,2]
[329348457,1718266252907,-1652.68,0.00017534,2]
[329348458,1718266252918,-500.0,0.00017534,2]
[329348459,1718266252933,-500.0,0.00017534,2]
[329348460,1718266252947,-500.0,0.00017534,2]
[329348461,1718266252966,-742.37,0.00017534,2]
[329348462,1718266252979,-500.0,0.00017534,2]
[329348463,1718266252990,-2619.21,0.00017534,2]
[329348464,1718266253006,-500.0,0.00017534,2]
[329348465,1718266253018,-500.0,0.00017534,2]
[329348466,1718266253029,-500.0,0.00017534,2]
[329348467,1718266253041,-500.0,0.00017534,2]
[329348468,1718266253056,-1855.6417537,0.0001766,2]
[329348469,1718266253068,-375.4,0.00017684,2]
[329348470,1718266253082,-500.0,0.00017799,2]
[329348471,1718266253093,-500.0,0.00017799,2]
[329348472,1718266253106,-529.23116304,0.00017799,2]
[329348473,1718266253117,-533.9,0.00017799,2]
[329348474,1718266253130,-533.9,0.00017799,2]
[329348475,1718266253142,-533.9,0.00017799,2]
[329348476,1718266253161,-325.11946222,0.00017799,2]
[329348477,1718266253174,-500.0,0.00017799,2]
[329348478,1718266253199,-500.0,0.00017799,2]
[329348479,1718266253215,-500.0,0.00017799,2]
[329348480,1718266253244,-500.0,0.00017808,2]
[329348481,1718266253254,-500.0,0.00017808,2]
[329348482,1718266253268,-500.0,0.00017808,2]
[329348483,1718266253290,-953.27,0.00017808,2]
[329348484,1718266253301,-500.0,0.00017808,2]
[329348485,1718266253312,-500.0,0.00017808,2]
[329348486,1718266253323,-500.0,0.00017808,2]
[329348487,1718266253342,-2157.95,0.00017808,2]
[329348488,1718266253358,-973.35,0.00017808,2]
[329348489,1718266253368,-500.0,0.00017808,2]
[329348490,1718266253420,-1295.43,0.00017808,2]
[329348491,1718266253449,-304.37166635,0.00017808,2]
[329348492,1718266253461,-500.0,0.00017808,2]
[329348493,1718266253475,-3663.23,0.00017808,2]
[329348494,1718266253486,-500.0,0.00017808,2]
[329348495,1718266253497,-500.0,0.00017808,2]
[329348496,1718266253509,-500.0,0.00017808,2]
[329348497,1718266253524,-500.0,0.00017808,2]
[329348498,1718266253537,-1073.74,0.00017808,2]
[329348499,1718266253549,-751.61,0.00017808,2]
[329348500,1718266253561,-834.37,0.00017808,2]
[329348501,1718266253573,-500.0,0.00017808,2]
[329348502,1718266253587,-1652.68,0.00017808,2]
[329348503,1718266253606,-500.0,0.00017808,2]
[329348504,1718266253633,-500.0,0.00017808,2]
[329348505,1718266253690,-742.37,0.00017808,2]
[329348506,1718266253702,-500.0,0.00017808,2]
[329348507,1718266253714,-2619.21,0.00017808,2]
[329348508,1718266253725,-500.0,0.00017808,2]
[329348509,1718266253742,-267.94001311,0.00017808,2]
[329348510,1718266253756,-500.0,0.00017808,2]
[329348511,1718266253786,-500.0,0.00017808,2]
[329348512,1718266253807,-306.9737281,0.0001789,2]
[329348513,1718266253823,-375.4,0.00017891,2]
[329348514,1718266253838,-88888.0,0.000179,2]
[329348515,1718266253851,-152.058189,0.000179,2]
[329348516,1718266253869,-533.9,0.00017997,2]
[329348517,1718266253894,-500.0,0.00017997,2]
[329348518,1718266253925,-660.11978951,0.00017999,2]
[329348519,1718266253948,-533.9,0.00017999,2]
[329348520,1718266253971,-533.9,0.00017999,2]
[329348521,1718266253998,-533.9,0.00017999,2]
[329348522,1718266254036,-533.9,0.00017999,2]
[329348523,1718266254058,-500.0,0.00017999,2]
[329348524,1718266254083,-500.0,0.00017999,2]
[329348525,1718266254103,-500.0,0.00017999,2]
[329348526,1718266254128,-500.0,0.00017999,2]
[329348527,1718266254161,-26940.88185422,0.00018,13]
[329348528,1718266254174,-76166.11647397,0.00018,2]
[329348529,1718266254185,-1469.34372723,0.00018,2]
[329348530,1718266254237,-324.24865847,0.00018,2]
[329348531,1718266254249,-70083.03885545,0.00018,2]
[329348532,1718266254262,-876.95081653,0.00018,2]
[329348533,1718266254275,-221.63294842,0.00018,2]
[329348534,1718266254297,-6083.0,0.00018,2]
[329348535,1718266254307,-152.008787,0.00018,2]
[329348536,1718266254318,-1000.0,0.00018,2]
[329348537,1718266254347,-1000.0,0.00018,2]
[329348538,1718266254363,-1000.0,0.00018,2]
[329348539,1718266254378,-1000.0,0.00018,2]
[329348540,1718266254394,-1000.0,0.00018,2]
[329348541,1718266254419,-1000.0,0.00018,2]
[329348542,1718266254433,-1000.0,0.00018,2]
[329348543,1718266254457,-1000.0,0.00018,2]
[329348544,1718266254474,-1000.0,0.00018,2]
[329348545,1718266254497,-1000.0,0.00018,2]
[329348546,1718266254517,-1000.0,0.00018,2]
[329348547,1718266254548,-682.222965,0.00018,2]
[329348548,1718266254559,-939.184518,0.00018,2]
[329348549,1718266254569,-365.801331,0.00018,2]
[329348550,1718266254580,-151.0,0.00018,2]
[329348551,1718266254595,-939.184518,0.00018,2]
[329348552,1718266254607,-236.636312,0.00018,2]
[329348553,1718266254621,-365.801331,0.00018,2]
[329348554,1718266254643,-236.636312,0.00018,2]
[329348555,1718266254654,-151.0,0.00018,2]
[329348556,1718266254671,-1225.827198,0.00018,2]
[329348557,1718266254689,-1225.827198,0.00018,2]
[329348558,1718266254700,-474.808946,0.00018,2]
[329348559,1718266254721,-474.808946,0.00018,2]
[329348560,1718266254741,-151.0,0.00018,2]
[329348561,1718266254752,-412.85183957,0.00018008,2]
[329348562,1718266254769,-151.0,0.00018018,2]
[329348563,1718266254796,-151.0,0.00018018,2]
[329348564,1718266254824,-151.0,0.00018018,2]
[329348565,1718266254839,-151.0,0.00018018,2]
[329348566,1718266254855,-151.0,0.00018018,2]
[329348567,1718266254870,-5282.5380268,0.00018053,2]
[329348568,1718266254882,-261.555203,0.00018081,2]
[329348569,1718266254894,-261.555203,0.00018081,2]
[329348570,1718266254905,-151.0,0.00018081,2]
[329348571,1718266254916,-151.0,0.00018081,2]
[329348572,1718266254934,-532.81335,0.00018081,2]
[329348573,1718266254946,-532.81335,0.00018081,2]
[329348574,1718266254965,-533.9,0.00018081,2]
[329348575,1718266254976,-500.0,0.00018082,2]
[329348576,1718266254987,-500.0,0.00018082,2]
[329348577,1718266254999,-500.0,0.00018082,2]
[329348578,1718266255028,-953.27,0.00018082,2]
[329348579,1718266255047,-500.0,0.00018082,2]
[329348580,1718266255058,-152.133893,0.00018082,2]
[329348581,1718266255080,-455.7775,0.00018082,2]
[329348582,1718266255135,-455.7775,0.00018082,2]
[329348583,1718266255147,-216.996502,0.00018082,2]
[329348584,1718266255179,-151.0,0.00018082,2]
[329348585,1718266255190,-824.060078,0.00018082,2]
[329348586,1718266255200,-824.060078,0.00018082,2]
[329348587,1718266255229,-500.0,0.00018082,2]
[329348588,1718266255241,-2157.95,0.00018082,2]
[329348589,1718266255261,-973.35,0.00018082,2]
[329348590,1718266255275,-234.26,0.00018082,2]
[329348591,1718266255288,-1295.43,0.00018082,2]
[329348592,1718266255302,-500.0,0.00018082,2]
[329348593,1718266255313,-3663.23,0.00018082,2]
[329348594,1718266255324,-500.0,0.00018082,2]
[329348595,1718266255460,-527.52,0.00018082,2]
[329348596,1718266255478,-500.0,0.00018082,2]
[329348597,1718266255489,-500.0,0.00018082,2]
[329348598,1718266255502,-1073.74,0.00018082,2]
[329348599,1718266255513,-751.61,0.00018082,2]
[329348600,1718266255524,-939.184518,0.00018082,2]
[329348601,1718266255540,-151.0,0.00018082,2]
[329348602,1718266255553,-365.801331,0.00018082,2]
[329348603,1718266255571,-834.37,0.00018082,2]
[329348604,1718266255590,-939.184518,0.00018082,2]
[329348605,1718266255605,-236.636312,0.00018082,2]
[329348606,1718266255616,-365.801331,0.00018082,2]
[329348607,1718266255627,-236.636312,0.00018082,2]
[329348608,1718266255643,-500.0,0.00018082,2]
[329348609,1718266255671,-1652.68,0.00018082,2]
[329348610,1718266255691,-500.0,0.00018082,2]
[329348611,1718266255704,-500.0,0.00018082,2]
[329348612,1718266255718,-742.37,0.00018082,2]
[329348613,1718266255733,-151.0,0.00018082,2]
[329348614,1718266255753,-1225.827198,0.00018082,2]
[329348615,1718266255764,-500.0,0.00018082,2]
[329348616,1718266255776,-1225.827198,0.00018082,2]
[329348617,1718266255791,-2619.21,0.00018082,2]
[329348618,1718266255803,-500.0,0.00018082,2]
[329348619,1718266255815,-500.0,0.00018082,2]
[329348620,1718266255826,-474.808946,0.00018082,2]
[329348621,1718266255836,-474.808946,0.00018082,2]
[329348622,1718266255847,-500.0,0.00018082,2]
[329348623,1718266255858,-151.0,0.00018082,2]
[329348624,1718266255869,-375.4,0.00018098,2]
[329348625,1718266255889,-1855.6417537,0.000181,2]
[329348626,1718266255900,-153.0,0.00018172,2]
[329348627,1718266255912,-500.0,0.00018198,2]
[329348628,1718266255952,-533.9,0.00018199,2]
[329348629,1718266255967,-533.9,0.00018199,2]
[329348630,1718266255979,-533.9,0.00018199,2]
[329348631,1718266255999,-533.9,0.00018199,2]
[329348632,1718266256019,-500.0,0.00018199,2]
[329348633,1718266256049,-500.0,0.00018199,2]
[329348634,1718266256074,-529.1,0.00018199,2]
[329348635,1718266256094,-40929.47991138,0.000182,2]
[329348636,1718266256223,-25057.24301671,0.000182,2]
[329348637,1718266256315,-2474.6792789,0.000182,2]
[329348638,1718266256477,-500.0,0.00016438,2]
[329348639,1718266256489,-500.0,0.00016712,2]
[329348640,1718266256501,-500.0,0.00016986,2]
[329348641,1718266256512,-11798.88237705,0.000182,2]
[329348642,1718266256585,-500.0,0.00016438,2]
[329348643,1718266256610,-258.305691,0.0001726,2]
[329348644,1718266317994,927.89421076,9.999e-05,2]
[329348645,1718266360955,1518.74519988,9.999e-05,2]
[329348646,1718266699383,591.82,0.00010959,2]
[329348647,1718266719225,273.37336231,9.9e-05,2]
[329348648,1718266728008,218.41129239,9.9e-05,2]
[329348649,1718266768957,411.76904927,9.999e-05,2]
[329348650,1718266823222,471.21,0.00010959,2]
[329348651,1718266860550,660.30185486,9.999e-05,2]
[329348652,1718266915545,195.19296945,9.999e-05,2]
[329348656,1718267101699,552.71924724,9.999e-05,2]
[329348657,1718267121953,276.82,0.00010959,2]
[329348658,1718267142713,230.68,0.00010959,2]
[329348659,1718267161139,722.70061891,9.999e-05,2]
[329348660,1718267179600,384.46,0.00010959,2]
[329348661,1718267182666,155.60318111,9.999e-05,2]
[329348662,1718267190182,768.97,0.00010959,2]
[329348663,1718267204084,155.10261713,9.999e-05,2]
[329348664,1718267235999,202.41329521,9.999e-05,2]
[329348665,1718267237495,524.64907675,9.999e-05,2]
[329348685,1718267350089,660.30185486,9.999e-05,2]
[329348762,1718267390108,2644.05459629,9.999e-05,2]
[329348824,1718267445471,-552.71924724,0.00015373,2]
[329348825,1718267445496,-51.2655414,0.00015374,2]
[329348858,1718267452136,-1860.6867879,0.00015374,2]
[329348859,1718267452168,-660.30185486,0.0001541,2]
[329348860,1718267452216,-470.85750239,0.00015411,2]
[329348861,1718267452231,-1701.34634581,0.00015411,2]
[329348862,1718267452246,-1000.0,0.00016,3]
[329348863,1718267452264,-1113.38505222,0.00016338,2]
[329348864,1718267452277,-327.18702814,0.00016421,2]
[329348865,1718267452287,-300.0,0.00016422,2]
[329348866,1718267452298,-1446.15898193,0.00016423,2]
[329348867,1718267452310,-42124.85895111,0.00016423,2]
[329348868,1718267452321,-524.34539311,0.00016424,2]
[329348869,1718267452332,-182.05464704,0.00016426,2]
[329348870,1718267452345,-531.76676405,0.00016426,2]
[329348871,1718267452357,-692.66500344,0.00016426,2]
[329348872,1718267452370,-190.55526406,0.00016426,2]
[329348873,1718267452386,-158.1807956,0.00016426,2]
[329348874,1718267452398,-208.42988164,0.00016427,2]
[329348875,1718267452417,-195.08057105,0.00016428,2]
[329348876,1718267452432,-1346.90948518,0.00016429,2]
[329348877,1718267452444,-239.41220347,0.0001643,2]
[329348878,1718267452455,-187.41110824,0.0001643,2]
[329348879,1718267452465,-774.74457218,0.00016431,2]
[329348880,1718267452477,-1285.47667266,0.00016432,2]
[329348881,1718267452496,-515.78666904,0.00016432,2]
[329348883,1718267452512,-722.28328559,0.00016432,2]
[329348886,1718267452531,-1437.50804017,0.00016435,2]
[329348887,1718267452542,-166.89030188,0.00016435,2]
[329348888,1718267452576,-242.45261852,0.00016435,2]
[329348889,1718267452588,-927.3846286,0.00016435,2]
[329348890,1718267452600,-216.36344179,0.00016435,2]
[329348891,1718267452613,-155.17163874,0.00016435,2]
[329348892,1718267452628,-303.336601,0.00016435,2]
[329348893,1718267452641,-155.17815854,0.00016435,2]
[329348894,1718267452664,-155.1051018,0.00016435,2]
[329348895,1718267452687,-155.01395126,0.00016435,2]
[329348896,1718267452712,-155.01550155,0.00016435,2]
[329348897,1718267452723,-1406.64307356,0.00016435,2]
[329348898,1718267452740,-155.01550155,0.00016435,2]
[329348899,1718267452793,-155.16081861,0.00016435,2]
[329348900,1718267452820,-157.16582144,0.00016435,2]
[329348901,1718267452841,-2559.13164525,0.00016436,2]
[329348902,1718267452860,-500.0,0.00016438,2]
[329348903,1718267452878,-500.0,0.00016438,2]
[329348904,1718267452890,-541.79408343,0.00016438,2]
[329348905,1718267452907,-505.43272219,0.00016438,2]
[329348906,1718267452930,-500.0,0.00016438,2]
[329348907,1718267452954,-500.0,0.00016438,2]
[329348908,1718267452965,-500.0,0.00016438,2]
[329348909,1718267452984,-500.0,0.00016438,2]
[329348910,1718267452999,-500.0,0.00016438,2]
[329348911,1718267453028,-529.87975182,0.00016438,2]
[329348912,1718267453048,-500.0,0.00016438,2]
[329348913,1718267453063,-516.80415969,0.00016438,2]
[329348914,1718267453086,-503.72942643,0.00016438,2]
[329348915,1718267453099,-500.0,0.00016438,2]
[329348916,1718267453122,-500.0,0.00016438,2]
[329348917,1718267453137,-500.0,0.00016438,2]
[329348918,1718267453186,-500.0,0.00016438,2]
[329348919,1718267453204,-500.0,0.00016438,2]
[329348920,1718267453216,-500.0,0.00016438,2]
[329348921,1718267453247,-500.0,0.00016438,2]
[329348922,1718267453280,-506.13114056,0.00016438,2]
[329348923,1718267453297,-490.72473778,0.00016438,2]
[329348924,1718267453319,-193.30367362,0.00016438,2]
[329348925,1718267453346,-500.0,0.00016438,2]
[329348926,1718267453390,-500.0,0.00016438,2]
[329348927,1718267453407,-500.0,0.00016438,2]
[329348928,1718267453469,-500.0,0.00016438,2]
[329348929,1718267453493,-500.64150737,0.00016438,2]
[329348930,1718267453521,-500.0,0.00016438,2]
[329348931,1718267453534,-155.0294556,0.00016438,2]
[329348932,1718267453546,-505.86369364,0.00016438,2]
[329348933,1718267453560,-500.0,0.00016438,2]
[329348934,1718267453578,-507.42722885,0.00016438,2]
[329348935,1718267453589,-500.0,0.00016438,2]
[329348936,1718267453599,-500.0,0.00016438,2]
[329348937,1718267453613,-500.0,0.00016438,2]
[329348938,1718267453633,-500.0,0.00016438,2]
[329348939,1718267453649,-500.0,0.00016438,2]
[329348940,1718267453666,-500.0,0.00016438,2]
[329348941,1718267453679,-516.20863492,0.00016438,2]
[329348942,1718267453689,-500.0,0.00016438,2]
[329348943,1718267453707,-500.0,0.00016438,2]
[329348944,1718267453723,-217.73679175,0.00016438,2]
[329348945,1718267453737,-500.0,0.00016438,2]
[329348946,1718267453748,-503.23546092,0.00016438,2]
[329348947,1718267453764,-503.91912436,0.00016438,2]
[329348948,1718267453790,-500.0,0.00016438,2]
[329348949,1718267453819,-505.94865781,0.00016438,2]
[329348950,1718267453831,-500.0,0.00016438,2]
[329348951,1718267454005,-500.0,0.00016438,2]
[329348952,1718267454018,-500.0,0.00016438,2]
[329348953,1718267454029,-363.82141599,0.00016438,2]
[329348954,1718267454041,-500.0,0.00016438,2]
[329348955,1718267454052,-500.0,0.00016438,2]
[329348956,1718267454067,-500.0,0.00016438,2]
[329348957,1718267454083,-500.0,0.00016438,2]
[329348958,1718267454098,-500.0,0.00016438,2]
[329348959,1718267454113,-500.0,0.00016438,2]
[329348960,1718267454125,-500.0,0.00016438,2]
[329348961,1718267454138,-500.0,0.00016438,2]
[329348962,1718267454153,-500.0,0.00016438,2]
[329348963,1718267454208,-500.0,0.00016438,2]
[329348964,1718267454221,-500.0,0.00016438,2]
[329348965,1718267454238,-500.0,0.00016438,2]
[329348966,1718267454249,-511.96001804,0.00016438,2]
[329348967,1718267454259,-500.0,0.00016438,2]
[329348968,1718267454278,-238.30700054,0.00016438,2]
[329348969,1718267454290,-596.47907796,0.00016438,2]
[329348970,1718267454308,-500.0,0.00016438,2]
[329348971,1718267454321,-500.0,0.00016438,2]
[329348972,1718267454341,-500.0,0.00016438,2]
[329348973,1718267454354,-500.0,0.00016438,2]
[329348974,1718267454376,-500.0,0.00016438,2]
[329348975,1718267454409,-533.58581154,0.00016438,2]
[329348976,1718267454441,-530.48906599,0.00016438,2]
[329348977,1718267454461,-502.50707522,0.00016438,2]
[329348978,1718267454489,-500.0,0.00016438,2]
[329348979,1718267454505,-500.0,0.00016438,2]
[329348980,1718267454537,-881.12,0.00016438,2]
[329348981,1718267454548,-526.5926666,0.00016438,2]
[329348982,1718267454560,-501.82755419,0.00016438,2]
[329348983,1718267454576,-500.0,0.00016438,2]
[329348984,1718267454604,-500.0,0.00016438,2]
[329348985,1718267454621,-500.0,0.00016438,2]
[329348986,1718267454632,-500.0,0.00016438,2]
[329348987,1718267454645,-500.0,0.00016438,2]
[329348988,1718267454657,-325.11946222,0.00016438,2]
[329348989,1718267454672,-500.0,0.00016438,2]
[329348990,1718267454690,-500.0,0.00016438,2]
[329348991,1718267454710,-500.0,0.00016438,2]
[329348992,1718267454725,-500.0,0.00016438,2]
[329348993,1718267454737,-500.0,0.00016438,2]
[329348994,1718267454772,-500.0,0.00016438,2]
[329348995,1718267454810,-500.0,0.00016438,2]
[329348996,1718267454822,-500.0,0.00016438,2]
[329348997,1718267454851,-500.0,0.00016438,2]
[329348998,1718267454877,-609.02866434,0.00016438,2]
[329348999,1718267454916,-353.05285413,0.00016438,2]
[329349000,1718267454930,-506.67034706,0.00016438,2]
[329349001,1718267454948,-500.0,0.00016438,2]
[329349002,1718267454971,-500.0,0.00016438,2]
[329349003,1718267455001,-503.20765984,0.00016438,2]
[329349004,1718267455015,-517.37,0.00016438,2]
[329349005,1718267455032,-500.0,0.00016438,2]
[329349006,1718267455045,-500.0,0.00016438,2]
[329349007,1718267455061,-506.91318144,0.00016438,2]
[329349008,1718267455084,-500.0,0.00016438,2]
[329349009,1718267455096,-500.0,0.00016438,2]
[329349010,1718267455124,-500.0,0.00016438,2]
[329349011,1718267455138,-523.41156747,0.00016438,2]
[329349012,1718267455188,-500.0,0.00016438,2]
[329349013,1718267455205,-500.0,0.00016438,2]
[329349014,1718267455217,-500.0,0.00016438,2]
[329349015,1718267455229,-500.0,0.00016438,2]
[329349016,1718267455308,-500.0,0.00016438,2]
[329349017,1718267455320,-500.0,0.00016438,2]
[329349018,1718267455331,-510.95584257,0.00016438,2]
[329349019,1718267455355,-500.0,0.00016438,2]
[329349020,1718267455366,-500.0,0.00016438,2]
[329349021,1718267455384,-500.0,0.00016438,2]
[329349022,1718267455396,-500.0,0.00016438,2]
[329349023,1718267455429,-500.0,0.00016438,2]
[329349024,1718267455442,-616.43214066,0.00016438,2]
[329349025,1718267455458,-500.0,0.00016438,2]
[329349026,1718267455471,-500.0,0.00016438,2]
[329349027,1718267455488,-500.0,0.00016438,2]
[329349028,1718267455503,-500.0,0.00016438,2]
[329349029,1718267455514,-500.0,0.00016438,2]
[329349030,1718267455556,-1251.52,0.00016438,2]
[329349031,1718267455590,-500.0,0.00016438,2]
[329349032,1718267455609,-500.0,0.00016438,2]
[329349033,1718267455631,-500.0,0.00016438,2]
[329349034,1718267455649,-2022.77,0.00016438,2]
[329349035,1718267455680,-500.0,0.00016438,2]
[329349036,1718267455700,-500.0,0.00016438,2]
[329349037,1718267455715,-500.0,0.00016438,2]
[329349038,1718267455734,-530.45,0.00016438,2]
[329349039,1718267455759,-500.0,0.00016438,2]
[329349040,1718267455771,-500.0,0.00016438,2]
[329349041,1718267455807,-500.0,0.00016438,2]
[329349042,1718267455818,-500.0,0.00016438,2]
[329349043,1718267455833,-500.0,0.00016438,2]
[329349044,1718267455844,-1133.5,0.00016438,2]
[329349045,1718267455854,-3227.85,0.00016438,2]
[329349046,1718267455865,-500.0,0.00016438,2]
[329349047,1718267455877,-501.38252788,0.00016438,2]
[329349048,1718267455901,-508.84,0.00016438,2]
[329349049,1718267455919,-500.0,0.00016438,2]
[329349050,1718267455933,-500.0,0.00016438,2]
[329349051,1718267455946,-500.0,0.00016438,2]
[329349052,1718267455957,-593.26989627,0.00016438,2]
[329349053,1718267455982,-500.0,0.00016438,2]
[329349054,1718267455995,-500.0,0.00016438,2]
[329349055,1718267456011,-250.0,0.00016438,2]
[329349056,1718267456033,-500.0,0.00016438,2]
[329349057,1718267456049,-500.0,0.00016438,2]
[329349058,1718267456068,-500.0,0.00016438,2]
[329349059,1718267456080,-500.0,0.00016438,2]
[329349060,1718267456102,-500.0,0.00016438,2]